[Event "*** Titled Tuesday Blitz"]
[Site "Chess.com"]
[Date "2021.02.09"]
[Round "2"]
[White "Supernotar"]
[Black "smshk35"]
[Result "0-1"]
[WhiteElo "2790"]
[BlackElo "2431"]
[TimeControl "180+1"]
[EndTime "10:16:10 PST"]
[Termination "smshk35 won by resignation"]

1. d4 {[%clk 0:03:00.9]} 1... Nf6 {[%clk 0:02:59.8]} 2. c4 {[%clk 0:03:00.7]}
2... g6 {[%clk 0:02:58.9]} 3. Nc3 {[%clk 0:03:00.6]} 3... Bg7 {[%clk 0:02:59.5]}
4. e4 {[%clk 0:03:01]} 4... d6 {[%clk 0:03:00]} 5. Be2 {[%clk 0:03:01.6]} 5...
O-O {[%clk 0:03:00.4]} 6. Nf3 {[%clk 0:03:02.1]} 6... Nbd7 {[%clk 0:03:00.2]} 7.
O-O {[%clk 0:03:02.4]} 7... e5 {[%clk 0:03:00.7]} 8. Bg5 {[%clk 0:03:02.7]} 8...
h6 {[%clk 0:03:00.3]} 9. Bh4 {[%clk 0:03:02.9]} 9... c6 {[%clk 0:02:57.8]} 10.
d5 {[%clk 0:03:01.1]} 10... c5 {[%clk 0:02:57.3]} 11. Nd2 {[%clk 0:03:01.3]}
11... g5 {[%clk 0:02:53.9]} 12. Bg3 {[%clk 0:03:00.9]} 12... Re8 {[%clk
0:02:50.7]} 13. a3 {[%clk 0:02:56.8]} 13... Nf8 {[%clk 0:02:49.9]} 14. Re1
{[%clk 0:02:54.7]} 14... Ng6 {[%clk 0:02:49.4]} 15. Nf1 {[%clk 0:02:52.5]} 15...
g4 {[%clk 0:02:33.9]} 16. Ne3 {[%clk 0:02:47.9]} 16... h5 {[%clk 0:02:33.9]} 17.
f3 {[%clk 0:02:40]} 17... h4 {[%clk 0:02:26.5]} 18. Bf2 {[%clk 0:02:40.2]} 18...
g3 {[%clk 0:02:26.8]} 19. hxg3 {[%clk 0:02:40.2]} 19... hxg3 {[%clk 0:02:27.2]}
20. Bxg3 {[%clk 0:02:41.1]} 20... Nh5 {[%clk 0:02:27.3]} 21. Bh2 {[%clk
0:02:39.4]} 21... Qg5 {[%clk 0:02:20.5]} 22. Bf1 {[%clk 0:02:28.2]} 22... Ng3
{[%clk 0:02:03.5]} 23. Nf5 {[%clk 0:02:17.7]} 23... Bxf5 {[%clk 0:01:52.1]} 24.
exf5 {[%clk 0:02:17.7]} 24... Nf4 {[%clk 0:01:52.5]} 25. Re4 {[%clk 0:01:39.9]}
25... Nh3+ {[%clk 0:00:53.6]} 26. gxh3 {[%clk 0:01:30.4]} 26... Nxe4+ {[%clk
0:00:49.6]} 27. Bg2 {[%clk 0:01:30.5]} 27... Qe3+ {[%clk 0:00:44.9]} 28. Kh1
{[%clk 0:01:26.2]} 28... Nf2+ {[%clk 0:00:44.5]} 29. Kg1 {[%clk 0:01:26.6]}
29... Nxd1+ {[%clk 0:00:43.5]} 0-1

[Event "*** Titled Tuesday Blitz"]
[Site "Chess.com"]
[Date "2021.02.09"]
[Round "2"]
[White "paulrusan"]
[Black "AwareIdea"]
[Result "0-1"]
[WhiteElo "2233"]
[BlackElo "2455"]
[TimeControl "180+1"]
[EndTime "10:16:10 PST"]
[Termination "AwareIdea won by resignation"]

1. e4 {[%clk 0:02:59.5]} 1... c6 {[%clk 0:02:59.7]} 2. d4 {[%clk 0:02:59]} 2...
d5 {[%clk 0:02:59.9]} 3. f3 {[%clk 0:02:59.4]} 3... dxe4 {[%clk 0:02:58.1]} 4.
fxe4 {[%clk 0:02:59.5]} 4... e5 {[%clk 0:02:58.4]} 5. Nf3 {[%clk 0:02:59.3]}
5... exd4 {[%clk 0:02:54.7]} 6. Bc4 {[%clk 0:02:59.7]} 6... Bc5 {[%clk
0:02:29.2]} 7. c3 {[%clk 0:02:47.1]} 7... Nf6 {[%clk 0:02:23.8]} 8. e5 {[%clk
0:02:46.1]} 8... Nd5 {[%clk 0:02:23.2]} 9. cxd4 {[%clk 0:02:45.6]} 9... Bb4+
{[%clk 0:02:23.1]} 10. Kf2 {[%clk 0:02:39.6]} 10... O-O {[%clk 0:02:21.6]} 11.
a3 {[%clk 0:02:31.5]} 11... Ba5 {[%clk 0:02:21.5]} 12. b4 {[%clk 0:02:26.7]}
12... Bb6 {[%clk 0:02:21.7]} 13. Re1 {[%clk 0:02:24.9]} 13... Bg4 {[%clk
0:02:21]} 14. Bb2 {[%clk 0:02:12.6]} 14... a5 {[%clk 0:02:13.4]} 15. bxa5 {[%clk
0:02:09.8]} 15... Bxa5 {[%clk 0:02:10.1]} 16. Re4 {[%clk 0:02:09.8]} 16... Bf5
{[%clk 0:02:07.5]} 17. Re2 {[%clk 0:02:08.3]} 17... Nd7 {[%clk 0:02:02.6]} 18.
Bxd5 {[%clk 0:02:04.7]} 18... cxd5 {[%clk 0:02:02.6]} 19. Nc3 {[%clk 0:02:03.8]}
19... Nb6 {[%clk 0:02:00.9]} 20. Qb3 {[%clk 0:01:52.3]} 20... Be6 {[%clk
0:02:00.3]} 21. Rf1 {[%clk 0:01:43.8]} 21... Qd7 {[%clk 0:01:58.6]} 22. Kg1
{[%clk 0:01:42.9]} 22... Nc4 {[%clk 0:01:57.5]} 23. Bc1 {[%clk 0:01:42.3]} 23...
Rfc8 {[%clk 0:01:46.1]} 24. Qb1 {[%clk 0:01:32.1]} 24... Bxc3 {[%clk 0:01:35.1]}
25. Ng5 {[%clk 0:01:31.8]} 25... Bxd4+ {[%clk 0:01:33.6]} 26. Kh1 {[%clk
0:01:31.5]} 26... g6 {[%clk 0:01:32.8]} 27. Qb3 {[%clk 0:01:23.8]} 27... Bxe5
{[%clk 0:01:27.6]} 28. Qf3 {[%clk 0:01:21.1]} 28... Bg7 {[%clk 0:01:23.6]} 29.
Nxe6 {[%clk 0:01:11.1]} 29... fxe6 {[%clk 0:01:22.1]} 30. Qh3 {[%clk 0:01:10.9]}
30... Re8 {[%clk 0:01:18.5]} 31. Rfe1 {[%clk 0:01:07.7]} 31... Ra6 {[%clk
0:01:17.3]} 0-1

[Event "*** Titled Tuesday Blitz"]
[Site "Chess.com"]
[Date "2021.02.09"]
[Round "2"]
[White "TheCavemanChesss"]
[Black "Rogarcia1"]
[Result "1-0"]
[WhiteElo "2554"]
[BlackElo "2299"]
[TimeControl "180+1"]
[EndTime "10:16:13 PST"]
[Termination "TheCavemanChesss won on time"]

1. e4 {[%clk 0:03:00.9]} 1... c5 {[%clk 0:02:59.5]} 2. Nf3 {[%clk 0:03:00.6]}
2... Nc6 {[%clk 0:02:58.3]} 3. d4 {[%clk 0:03:00.9]} 3... cxd4 {[%clk
0:02:58.4]} 4. Nxd4 {[%clk 0:03:01.8]} 4... Nf6 {[%clk 0:02:58.5]} 5. Nc3 {[%clk
0:03:02]} 5... e6 {[%clk 0:02:58.6]} 6. Bg5 {[%clk 0:03:02.4]} 6... Bb4 {[%clk
0:02:51.5]} 7. Nxc6 {[%clk 0:03:00.5]} 7... bxc6 {[%clk 0:02:51]} 8. Bd3 {[%clk
0:02:39.9]} 8... Bxc3+ {[%clk 0:01:37.2]} 9. bxc3 {[%clk 0:02:39.7]} 9... Qa5
{[%clk 0:01:37.2]} 10. Qd2 {[%clk 0:02:38.8]} 10... Ba6 {[%clk 0:01:27.2]} 11.
O-O {[%clk 0:02:38.5]} 11... Nxe4 {[%clk 0:01:03.5]} 12. Bxe4 {[%clk 0:02:36.5]}
12... Bxf1 {[%clk 0:01:02.9]} 13. Rxf1 {[%clk 0:02:35.4]} 13... d5 {[%clk
0:00:47.8]} 14. Rd1 {[%clk 0:01:58.5]} 14... O-O {[%clk 0:00:42.4]} 15. Bd3
{[%clk 0:01:58]} 15... e5 {[%clk 0:00:31.6]} 16. Qe3 {[%clk 0:01:53.1]} 16... e4
{[%clk 0:00:27.5]} 17. Bf1 {[%clk 0:01:53.3]} 17... f5 {[%clk 0:00:22.9]} 18. c4
{[%clk 0:01:51.7]} 18... h6 {[%clk 0:00:19.2]} 19. Bf4 {[%clk 0:01:48.8]} 19...
Rad8 {[%clk 0:00:16.1]} 20. cxd5 {[%clk 0:01:48.5]} 20... Rxd5 {[%clk
0:00:15.4]} 21. Bc4 {[%clk 0:01:48.2]} 1-0

[Event "*** Titled Tuesday Blitz"]
[Site "Chess.com"]
[Date "2021.02.09"]
[Round "2"]
[White "Vesper2018"]
[Black "Mbneu"]
[Result "1-0"]
[WhiteElo "2598"]
[BlackElo "2316"]
[TimeControl "180+1"]
[EndTime "10:16:18 PST"]
[Termination "Vesper2018 won by resignation"]

1. e4 {[%clk 0:03:00.8]} 1... c5 {[%clk 0:02:59.2]} 2. Nc3 {[%clk 0:03:00]} 2...
a6 {[%clk 0:02:58]} 3. Nge2 {[%clk 0:02:57.7]} 3... b5 {[%clk 0:02:56.9]} 4. g3
{[%clk 0:02:57.8]} 4... Bb7 {[%clk 0:02:56.2]} 5. Bg2 {[%clk 0:02:57.7]} 5... h5
{[%clk 0:02:56.8]} 6. d4 {[%clk 0:02:52.8]} 6... cxd4 {[%clk 0:02:45.6]} 7. Nxd4
{[%clk 0:02:52.3]} 7... h4 {[%clk 0:02:46]} 8. O-O {[%clk 0:02:44.7]} 8... Nc6
{[%clk 0:02:35.8]} 9. Re1 {[%clk 0:02:41.4]} 9... Ne5 {[%clk 0:02:26.7]} 10. f4
{[%clk 0:02:32.3]} 10... Ng6 {[%clk 0:02:14.3]} 11. e5 {[%clk 0:02:19.5]} 11...
hxg3 {[%clk 0:02:07]} 12. Bxb7 {[%clk 0:02:13.5]} 12... Rb8 {[%clk 0:01:52.3]}
13. Be4 {[%clk 0:02:08.6]} 13... gxh2+ {[%clk 0:01:11.3]} 14. Kh1 {[%clk
0:02:08.3]} 14... Nh4 {[%clk 0:01:09.6]} 15. Nc6 {[%clk 0:01:59.1]} 15... Qc7
{[%clk 0:01:01.4]} 16. Nxb8 {[%clk 0:01:58.2]} 16... Qxb8 {[%clk 0:01:02]} 17.
Be3 {[%clk 0:01:55.4]} 17... e6 {[%clk 0:01:01.5]} 18. Qd2 {[%clk 0:01:49.1]}
18... Ne7 {[%clk 0:01:00.5]} 19. Rad1 {[%clk 0:01:48]} 19... Qc8 {[%clk
0:00:57.4]} 20. Bf2 {[%clk 0:01:30.1]} 20... Nhf5 {[%clk 0:00:53.5]} 21. Bxf5
{[%clk 0:01:29.4]} 21... Nxf5 {[%clk 0:00:52.6]} 22. Ne4 {[%clk 0:01:29.9]}
22... Qc6 {[%clk 0:00:47.6]} 23. Qc3 {[%clk 0:01:27.1]} 23... Qb7 {[%clk
0:00:42.2]} 24. Qf3 {[%clk 0:01:25.4]} 24... Be7 {[%clk 0:00:31.2]} 25. Nf6+
{[%clk 0:01:21.6]} 1-0

[Event "*** Titled Tuesday Blitz"]
[Site "Chess.com"]
[Date "2021.02.09"]
[Round "2"]
[White "sergoy"]
[Black "NiranjanNavalgund"]
[Result "1-0"]
[WhiteElo "2864"]
[BlackElo "2527"]
[TimeControl "180+1"]
[EndTime "10:16:21 PST"]
[Termination "sergoy won by checkmate"]

1. d4 {[%clk 0:03:00.9]} 1... Nf6 {[%clk 0:03:00]} 2. c4 {[%clk 0:03:00.8]} 2...
e6 {[%clk 0:02:59.9]} 3. Nf3 {[%clk 0:03:01.4]} 3... Bb4+ {[%clk 0:02:59.1]} 4.
Nbd2 {[%clk 0:03:01]} 4... d6 {[%clk 0:02:56.9]} 5. a3 {[%clk 0:02:55.8]} 5...
Bxd2+ {[%clk 0:02:56.4]} 6. Qxd2 {[%clk 0:02:56.4]} 6... O-O {[%clk 0:02:55.2]}
7. b4 {[%clk 0:02:56.8]} 7... b6 {[%clk 0:02:54.9]} 8. e3 {[%clk 0:02:56.2]}
8... Bb7 {[%clk 0:02:55.2]} 9. Be2 {[%clk 0:02:56.8]} 9... Nbd7 {[%clk
0:02:55.7]} 10. Bb2 {[%clk 0:02:56.6]} 10... a5 {[%clk 0:02:55.8]} 11. O-O
{[%clk 0:02:56.3]} 11... Ne4 {[%clk 0:02:52.5]} 12. Qc2 {[%clk 0:02:55.2]} 12...
f5 {[%clk 0:02:52.7]} 13. d5 {[%clk 0:02:54.8]} 13... e5 {[%clk 0:02:49.2]} 14.
Ne1 {[%clk 0:02:52]} 14... axb4 {[%clk 0:02:49]} 15. axb4 {[%clk 0:02:51.7]}
15... Rxa1 {[%clk 0:02:49.8]} 16. Bxa1 {[%clk 0:02:52.2]} 16... b5 {[%clk
0:02:43.5]} 17. f3 {[%clk 0:02:45.3]} 17... Ng5 {[%clk 0:02:34.2]} 18. h4 {[%clk
0:02:42.5]} 18... Nf7 {[%clk 0:02:18.4]} 19. Qxf5 {[%clk 0:02:29]} 19... bxc4
{[%clk 0:02:16.3]} 20. e4 {[%clk 0:02:27.6]} 20... Nh6 {[%clk 0:02:09.3]} 21.
Qh3 {[%clk 0:02:21.7]} 21... Nb6 {[%clk 0:02:03.2]} 22. Nc2 {[%clk 0:02:16.4]}
22... Qa8 {[%clk 0:01:47.6]} 23. f4 {[%clk 0:02:06.2]} 23... exf4 {[%clk
0:01:36.4]} 24. Qe6+ {[%clk 0:01:56.5]} 24... Kh8 {[%clk 0:01:35.1]} 25. Bd4
{[%clk 0:01:40.9]} 25... Ng8 {[%clk 0:01:24.3]} 26. h5 {[%clk 0:01:24.8]} 26...
Bc8 {[%clk 0:01:12]} 27. h6 {[%clk 0:01:24.3]} 27... Nf6 {[%clk 0:00:58.2]} 28.
Qe7 {[%clk 0:01:18.2]} 28... gxh6 {[%clk 0:00:44.7]} 29. Qxf8# {[%clk
0:01:16.4]} 1-0

[Event "*** Titled Tuesday Blitz"]
[Site "Chess.com"]
[Date "2021.02.09"]
[Round "2"]
[White "bangchess21"]
[Black "michaelk123"]
[Result "1-0"]
[WhiteElo "2722"]
[BlackElo "2479"]
[TimeControl "180+1"]
[EndTime "10:16:21 PST"]
[Termination "bangchess21 won by resignation"]

1. d4 {[%clk 0:03:00.7]} 1... Nf6 {[%clk 0:02:59.1]} 2. Bf4 {[%clk 0:03:00.4]}
2... g6 {[%clk 0:02:56.6]} 3. Nc3 {[%clk 0:03:00.4]} 3... d5 {[%clk 0:02:54.7]}
4. e3 {[%clk 0:03:00.9]} 4... Bg7 {[%clk 0:02:54.9]} 5. h4 {[%clk 0:03:01.1]}
5... h5 {[%clk 0:02:53.7]} 6. Nf3 {[%clk 0:03:01.2]} 6... Bg4 {[%clk 0:02:52.3]}
7. Qd2 {[%clk 0:03:00.8]} 7... a6 {[%clk 0:02:49.5]} 8. Ne5 {[%clk 0:03:00.6]}
8... Nbd7 {[%clk 0:02:44.3]} 9. f3 {[%clk 0:02:51.8]} 9... Bf5 {[%clk
0:02:41.3]} 10. Be2 {[%clk 0:02:42.6]} 10... c5 {[%clk 0:02:40.8]} 11. dxc5
{[%clk 0:02:34.7]} 11... Nxc5 {[%clk 0:02:35.4]} 12. O-O-O {[%clk 0:02:30.5]}
12... Rc8 {[%clk 0:02:32]} 13. e4 {[%clk 0:02:16.2]} 13... Bxe4 {[%clk
0:01:48.4]} 14. fxe4 {[%clk 0:02:10]} 14... Ncxe4 {[%clk 0:01:48.2]} 15. Nxe4
{[%clk 0:02:07.9]} 15... Nxe4 {[%clk 0:01:48.1]} 16. Qxd5 {[%clk 0:01:59.4]}
16... Nd6 {[%clk 0:01:20]} 17. Kb1 {[%clk 0:01:21.2]} 17... Qb6 {[%clk
0:01:16.8]} 18. Qb3 {[%clk 0:01:05.1]} 18... Qa5 {[%clk 0:01:08.3]} 19. Rxd6
{[%clk 0:00:58.9]} 19... Bxe5 {[%clk 0:01:07.7]} 20. Rd5 {[%clk 0:00:53.2]}
20... Rc5 {[%clk 0:01:01.6]} 21. Bxe5 {[%clk 0:00:47.8]} 21... Rxd5 {[%clk
0:00:56.6]} 22. Bxh8 {[%clk 0:00:47.4]} 22... Rb5 {[%clk 0:00:53.4]} 23. Bxb5+
{[%clk 0:00:47.2]} 1-0

[Event "*** Titled Tuesday Blitz"]
[Site "Chess.com"]
[Date "2021.02.09"]
[Round "2"]
[White "onnoelgersma"]
[Black "lamomiablanca"]
[Result "1-0"]
[WhiteElo "2472"]
[BlackElo "2273"]
[TimeControl "180+1"]
[EndTime "10:16:28 PST"]
[Termination "onnoelgersma won by resignation"]

1. e4 {[%clk 0:03:00.9]} 1... c5 {[%clk 0:02:59.2]} 2. Nf3 {[%clk 0:03:00.4]}
2... Nc6 {[%clk 0:02:58.4]} 3. Bb5 {[%clk 0:02:58.4]} 3... g6 {[%clk 0:02:57]}
4. c3 {[%clk 0:02:57]} 4... Nf6 {[%clk 0:02:42.3]} 5. Qe2 {[%clk 0:02:47.5]}
5... Bg7 {[%clk 0:02:21.9]} 6. O-O {[%clk 0:02:46.5]} 6... O-O {[%clk
0:02:21.2]} 7. h3 {[%clk 0:02:45.8]} 7... e5 {[%clk 0:02:10.5]} 8. a3 {[%clk
0:02:43.4]} 8... d6 {[%clk 0:02:04.8]} 9. b4 {[%clk 0:02:41.1]} 9... cxb4 {[%clk
0:01:58.8]} 10. axb4 {[%clk 0:02:42]} 10... a6 {[%clk 0:01:54.3]} 11. Bxc6
{[%clk 0:02:37.7]} 11... bxc6 {[%clk 0:01:53.8]} 12. d3 {[%clk 0:02:36.2]} 12...
Be6 {[%clk 0:01:44]} 13. Nbd2 {[%clk 0:02:34.8]} 13... Qc7 {[%clk 0:01:41.3]}
14. Nc4 {[%clk 0:02:32.2]} 14... Rfd8 {[%clk 0:01:21.5]} 15. Be3 {[%clk
0:02:28.1]} 15... Rdb8 {[%clk 0:01:13.6]} 16. Bg5 {[%clk 0:02:21.4]} 16... h6
{[%clk 0:01:12]} 17. Bd2 {[%clk 0:02:12.6]} 17... Nd7 {[%clk 0:01:08.5]} 18.
Rfb1 {[%clk 0:02:09.6]} 18... d5 {[%clk 0:01:07.1]} 19. Na5 {[%clk 0:02:04.4]}
19... dxe4 {[%clk 0:00:57.9]} 20. dxe4 {[%clk 0:02:03.3]} 20... c5 {[%clk
0:00:58.3]} 21. Be3 {[%clk 0:01:56.9]} 21... cxb4 {[%clk 0:00:55.9]} 22. cxb4
{[%clk 0:01:55.4]} 22... Bf8 {[%clk 0:00:52]} 23. Rc1 {[%clk 0:01:51.7]} 23...
Qd6 {[%clk 0:00:49.3]} 24. Nc6 {[%clk 0:01:36.3]} 24... Rb7 {[%clk 0:00:41.9]}
25. Rxa6 {[%clk 0:01:31.8]} 25... Rxa6 {[%clk 0:00:33.9]} 26. Qxa6 {[%clk
0:01:32.7]} 26... Rc7 {[%clk 0:00:28.2]} 27. b5 {[%clk 0:01:29.8]} 27... Nc5
{[%clk 0:00:24.1]} 28. Bxc5 {[%clk 0:01:28.2]} 28... Qxc5 {[%clk 0:00:23.9]} 29.
Rxc5 {[%clk 0:01:28]} 1-0

[Event "*** Titled Tuesday Blitz"]
[Site "Chess.com"]
[Date "2021.02.09"]
[Round "2"]
[White "sergeikim"]
[Black "beto-betun"]
[Result "1-0"]
[WhiteElo "2411"]
[BlackElo "2182"]
[TimeControl "180+1"]
[EndTime "10:16:30 PST"]
[Termination "sergeikim won by resignation"]

1. d4 {[%clk 0:02:59]} 1... Nf6 {[%clk 0:02:59]} 2. c4 {[%clk 0:02:58.9]} 2...
g6 {[%clk 0:02:59.2]} 3. Nc3 {[%clk 0:02:58.8]} 3... Bg7 {[%clk 0:02:59.7]} 4.
e4 {[%clk 0:02:58.8]} 4... d6 {[%clk 0:03:00.2]} 5. Nge2 {[%clk 0:02:58.1]} 5...
O-O {[%clk 0:02:59.5]} 6. Ng3 {[%clk 0:02:57.8]} 6... c5 {[%clk 0:02:57.4]} 7.
d5 {[%clk 0:02:57.9]} 7... e6 {[%clk 0:02:57.3]} 8. Be2 {[%clk 0:02:57.9]} 8...
exd5 {[%clk 0:02:57.4]} 9. cxd5 {[%clk 0:02:58.1]} 9... Re8 {[%clk 0:02:57.7]}
10. O-O {[%clk 0:02:57.9]} 10... a6 {[%clk 0:02:57.6]} 11. a4 {[%clk 0:02:57]}
11... b6 {[%clk 0:02:57.8]} 12. Bf4 {[%clk 0:02:56.4]} 12... Qe7 {[%clk
0:02:54.6]} 13. Qd2 {[%clk 0:02:56.1]} 13... Nbd7 {[%clk 0:02:53.3]} 14. Bh6
{[%clk 0:02:56]} 14... Bh8 {[%clk 0:02:50.2]} 15. f4 {[%clk 0:02:55]} 15... Rb8
{[%clk 0:02:48.8]} 16. e5 {[%clk 0:02:55]} 16... dxe5 {[%clk 0:02:46.4]} 17. d6
{[%clk 0:02:55]} 17... Qe6 {[%clk 0:02:43]} 18. f5 {[%clk 0:02:54.9]} 18... Qb3
{[%clk 0:02:21.1]} 19. Nge4 {[%clk 0:02:35.1]} 19... Bb7 {[%clk 0:02:13.4]} 20.
Ng5 {[%clk 0:02:13.7]} 20... b5 {[%clk 0:02:00.1]} 21. axb5 {[%clk 0:02:04.6]}
21... axb5 {[%clk 0:02:00.7]} 22. Bxb5 {[%clk 0:02:03.9]} 22... Bxg2 {[%clk
0:01:46.7]} 23. Ra3 {[%clk 0:01:52.8]} 23... Qb4 {[%clk 0:01:38.5]} 24. Ra4
{[%clk 0:01:51.8]} 24... Qb3 {[%clk 0:01:30.6]} 25. Bc4 {[%clk 0:01:50.1]} 25...
Qxc4 {[%clk 0:01:11.3]} 26. Rxc4 {[%clk 0:01:48.7]} 26... Bxf1 {[%clk
0:01:11.5]} 27. Kxf1 {[%clk 0:01:48.3]} 27... gxf5 {[%clk 0:01:04.3]} 28. Nge4
{[%clk 0:01:33.4]} 1-0

[Event "*** Titled Tuesday Blitz"]
[Site "Chess.com"]
[Date "2021.02.09"]
[Round "2"]
[White "LogoCzar"]
[Black "DarZay"]
[Result "1-0"]
[WhiteElo "2402"]
[BlackElo "2132"]
[TimeControl "180+1"]
[EndTime "10:16:31 PST"]
[Termination "LogoCzar won by resignation"]

1. e4 {[%clk 0:03:00.9]} 1... c5 {[%clk 0:02:59.7]} 2. Nf3 {[%clk 0:03:00.8]}
2... Nc6 {[%clk 0:02:58.1]} 3. d4 {[%clk 0:03:00.4]} 3... cxd4 {[%clk
0:02:57.9]} 4. Nxd4 {[%clk 0:03:00.6]} 4... d6 {[%clk 0:02:58.2]} 5. c4 {[%clk
0:02:59.9]} 5... Nf6 {[%clk 0:02:55.1]} 6. Nc3 {[%clk 0:03:00.1]} 6... e5 {[%clk
0:02:34.6]} 7. Nc2 {[%clk 0:02:53.9]} 7... Be7 {[%clk 0:02:33.2]} 8. Be2 {[%clk
0:02:49.6]} 8... O-O {[%clk 0:02:31.3]} 9. O-O {[%clk 0:02:48]} 9... a6 {[%clk
0:02:28.3]} 10. Be3 {[%clk 0:02:46.9]} 10... Be6 {[%clk 0:02:26.2]} 11. f3
{[%clk 0:02:46.7]} 11... Nd7 {[%clk 0:02:24.8]} 12. Nd5 {[%clk 0:02:44.8]} 12...
f5 {[%clk 0:02:12.8]} 13. Qd2 {[%clk 0:02:37.3]} 13... Nc5 {[%clk 0:02:08.2]}
14. b4 {[%clk 0:02:33.4]} 14... Nd7 {[%clk 0:02:01.2]} 15. Rfd1 {[%clk
0:02:29.2]} 15... fxe4 {[%clk 0:02:00.7]} 16. fxe4 {[%clk 0:02:28.4]} 16... Nf6
{[%clk 0:02:00.9]} 17. Bb6 {[%clk 0:02:12.9]} 17... Qd7 {[%clk 0:01:49.2]} 18.
Nxe7+ {[%clk 0:02:09.4]} 18... Qxe7 {[%clk 0:01:40.3]} 19. Qxd6 {[%clk
0:02:08.8]} 19... Nxe4 {[%clk 0:01:33]} 20. Qxe7 {[%clk 0:02:02.7]} 20... Nxe7
{[%clk 0:01:33.1]} 21. Bf3 {[%clk 0:01:58]} 21... Nc3 {[%clk 0:01:30.1]} 22. Rd3
{[%clk 0:01:54]} 22... Na4 {[%clk 0:01:20.7]} 23. c5 {[%clk 0:01:40.6]} 23...
Bf5 {[%clk 0:01:16]} 24. Rd2 {[%clk 0:01:35.7]} 24... e4 {[%clk 0:01:14.4]} 25.
Be2 {[%clk 0:01:31.3]} 25... Nxb6 {[%clk 0:01:14.2]} 26. cxb6 {[%clk 0:01:30.9]}
26... Nc6 {[%clk 0:01:12.6]} 27. Rad1 {[%clk 0:01:17.8]} 27... Rae8 {[%clk
0:01:05]} 28. Ne3 {[%clk 0:01:06.1]} 28... Nxb4 {[%clk 0:01:01]} 29. Nxf5 {[%clk
0:01:02.3]} 29... Rxf5 {[%clk 0:01:01]} 30. Rd7 {[%clk 0:01:01.8]} 30... Rf7
{[%clk 0:01:00.8]} 31. Bc4 {[%clk 0:01:01.1]} 1-0

[Event "*** Titled Tuesday Blitz"]
[Site "Chess.com"]
[Date "2021.02.09"]
[Round "2"]
[White "albi1999"]
[Black "Chuchofrio1"]
[Result "1-0"]
[WhiteElo "2624"]
[BlackElo "2300"]
[TimeControl "180+1"]
[EndTime "10:16:33 PST"]
[Termination "albi1999 won by checkmate"]

1. d4 {[%clk 0:03:00.9]} 1... Nf6 {[%clk 0:02:59.4]} 2. c4 {[%clk 0:03:01.1]}
2... g6 {[%clk 0:02:59.3]} 3. g3 {[%clk 0:03:01.5]} 3... Bg7 {[%clk 0:02:58.1]}
4. Bg2 {[%clk 0:03:01.4]} 4... O-O {[%clk 0:02:57.2]} 5. Nf3 {[%clk 0:03:01.6]}
5... d6 {[%clk 0:02:57.7]} 6. O-O {[%clk 0:03:01.4]} 6... Nc6 {[%clk 0:02:58.2]}
7. Nc3 {[%clk 0:02:59]} 7... Bf5 {[%clk 0:02:55.9]} 8. b3 {[%clk 0:02:52.4]}
8... e5 {[%clk 0:02:49.2]} 9. Bb2 {[%clk 0:02:48]} 9... exd4 {[%clk 0:02:44]}
10. Nxd4 {[%clk 0:02:48.1]} 10... Nxd4 {[%clk 0:02:44.8]} 11. Qxd4 {[%clk
0:02:49]} 11... Ne4 {[%clk 0:02:45.3]} 12. Qe3 {[%clk 0:02:44.4]} 12... Nxc3
{[%clk 0:02:41.2]} 13. Bxc3 {[%clk 0:02:44.4]} 13... Qd7 {[%clk 0:02:40.4]} 14.
Bxg7 {[%clk 0:02:43.3]} 14... Kxg7 {[%clk 0:02:41.3]} 15. Bxb7 {[%clk
0:02:39.1]} 15... Rae8 {[%clk 0:02:39.7]} 16. Qd4+ {[%clk 0:02:39.1]} 16... Kg8
{[%clk 0:02:38.7]} 17. Bf3 {[%clk 0:02:39.7]} 17... h5 {[%clk 0:02:30.4]} 18. h4
{[%clk 0:02:34.6]} 18... Bg4 {[%clk 0:02:23.4]} 19. Bxg4 {[%clk 0:02:32]} 19...
hxg4 {[%clk 0:02:24.3]} 20. Rfe1 {[%clk 0:02:28.8]} 20... f5 {[%clk 0:02:21.9]}
21. e3 {[%clk 0:02:23.5]} 21... Re4 {[%clk 0:02:16.8]} 22. Qxa7 {[%clk
0:02:20.1]} 22... g5 {[%clk 0:02:16.5]} 23. hxg5 {[%clk 0:02:19]} 23... Kg7
{[%clk 0:02:14.6]} 24. Qb7 {[%clk 0:02:08.8]} 24... Rh8 {[%clk 0:02:13.1]} 25.
Kg2 {[%clk 0:02:06.9]} 25... Qe7 {[%clk 0:02:02.6]} 26. Rh1 {[%clk 0:01:59.1]}
26... Qd8 {[%clk 0:01:43]} 27. Rxh8 {[%clk 0:01:54.4]} 27... Kxh8 {[%clk
0:01:43.9]} 28. Rh1+ {[%clk 0:01:53.6]} 28... Kg7 {[%clk 0:01:43.4]} 29. Qd5
{[%clk 0:01:52.1]} 29... Re5 {[%clk 0:01:42.3]} 30. Qc6 {[%clk 0:01:41.4]} 30...
Rc5 {[%clk 0:01:40.1]} 31. Qb7 {[%clk 0:01:41.4]} 31... Qxg5 {[%clk 0:01:20.8]}
32. Qc8 {[%clk 0:01:40.9]} 32... Kf6 {[%clk 0:01:03.4]} 33. Rh8 {[%clk
0:01:36.3]} 33... Qg7 {[%clk 0:00:58.4]} 34. Rf8+ {[%clk 0:01:31.7]} 34... Ke5
{[%clk 0:00:32.8]} 35. Qxf5# {[%clk 0:01:30.2]} 1-0

[Event "*** Titled Tuesday Blitz"]
[Site "Chess.com"]
[Date "2021.02.09"]
[Round "2"]
[White "jkidjr22"]
[Black "Unknown_IM"]
[Result "1-0"]
[WhiteElo "2656"]
[BlackElo "2377"]
[TimeControl "180+1"]
[EndTime "10:16:36 PST"]
[Termination "jkidjr22 won by checkmate"]

1. d4 {[%clk 0:03:00.9]} 1... Nf6 {[%clk 0:02:58.8]} 2. Bf4 {[%clk 0:03:01]}
2... g6 {[%clk 0:02:57]} 3. Nc3 {[%clk 0:03:00.5]} 3... Bg7 {[%clk 0:02:57.1]}
4. e3 {[%clk 0:02:59.7]} 4... O-O {[%clk 0:02:56.7]} 5. h4 {[%clk 0:03:00.2]}
5... h5 {[%clk 0:02:52.1]} 6. Nf3 {[%clk 0:02:59.7]} 6... d5 {[%clk 0:02:52.7]}
7. Qd2 {[%clk 0:02:55.3]} 7... c6 {[%clk 0:02:51.9]} 8. O-O-O {[%clk 0:02:54.9]}
8... Bf5 {[%clk 0:02:51.5]} 9. Ne5 {[%clk 0:02:54.3]} 9... Nbd7 {[%clk
0:02:50.7]} 10. f3 {[%clk 0:02:53.9]} 10... Nxe5 {[%clk 0:02:50.1]} 11. dxe5
{[%clk 0:02:54.8]} 11... Nd7 {[%clk 0:02:50.2]} 12. e4 {[%clk 0:02:52.8]} 12...
dxe4 {[%clk 0:02:48]} 13. fxe4 {[%clk 0:02:53.7]} 13... Be6 {[%clk 0:02:47.9]}
14. Be2 {[%clk 0:02:37.4]} 14... Qc7 {[%clk 0:02:42.8]} 15. g4 {[%clk
0:02:37.1]} 15... hxg4 {[%clk 0:01:20.2]} 16. h5 {[%clk 0:02:36.9]} 16... Rfd8
{[%clk 0:01:20.4]} 17. hxg6 {[%clk 0:02:33.8]} 17... fxg6 {[%clk 0:01:20.4]} 18.
Qe1 {[%clk 0:02:18.9]} 18... Bxe5 {[%clk 0:01:13.9]} 19. Bd2 {[%clk 0:02:17.8]}
19... Bg7 {[%clk 0:00:50.7]} 20. Qh4 {[%clk 0:02:14.1]} 20... Nf6 {[%clk
0:00:47.9]} 21. Qg5 {[%clk 0:02:03.2]} 21... Kf7 {[%clk 0:00:44.6]} 22. e5
{[%clk 0:02:00.5]} 22... Nd5 {[%clk 0:00:41]} 23. Rdf1+ {[%clk 0:01:57.3]} 23...
Bf5 {[%clk 0:00:41.3]} 24. Rxf5+ {[%clk 0:01:48.8]} 24... gxf5 {[%clk
0:00:41.1]} 25. Qxf5+ {[%clk 0:01:42.2]} 25... Kg8 {[%clk 0:00:39.8]} 26. Qe6+
{[%clk 0:01:30.2]} 26... Kf8 {[%clk 0:00:36.6]} 27. Rf1+ {[%clk 0:01:29.8]}
27... Nf6 {[%clk 0:00:35.3]} 28. exf6 {[%clk 0:01:29.4]} 28... exf6 {[%clk
0:00:29.3]} 29. Bc4 {[%clk 0:01:25.8]} 29... Qe5 {[%clk 0:00:18.1]} 30. Qf7#
{[%clk 0:01:24.7]} 1-0